[Event "SWE-ch -50 2018"]
[Site "Ronneby"]
[Date "2018.07.06"]
[Round "7"]
[White "Andersson, Kjell-Ake"]
[Black "Rothen, Hakan"]
[Result "1/2-1/2"]
[ECO "A06"]
[WhiteElo "1912"]
[BlackElo "2291"]
[Annotator "NA"]
[PlyCount "206"]
[EventDate "2018.06.30"]
[EventType "tourn"]
[EventCountry "SWE"]
[SourceTitle "playchess.com"]
[Source "ChessBase"]
[SourceQuality "1"]
[TimeControl "40/5400+30:1800+30"]

1. Nf3 {[%emt 0:00:15]} d5 {[%emt 0:00:00]} 2. d4 {[%emt 0:00:21]} Bf5 {[%emt 0:01:19]} 3. c4 {[%emt 0:00:48]} e6 {[%emt 0:01:40]} 4. Nc3 {[%emt 0:00:51]} c6 {[%emt 0:00:16]} 5. cxd5 {[%emt 0:00:28]} exd5 {[%emt 0:00:10]} 6. Bf4 {[%emt 0:00:46]} Nf6 {[%emt 0:00:21]} 7. e3 {[%emt 0:00:43] LiveBook: 92 Partien} Qb6 {[%emt 0:01:48]} 8. a3 $146 {[%emt 0:06:00] D35: Queen's Gambit Declined: Exchange Variation} ({White should try} 8. Bd3 $14 Bxd3 9. Qxd3) ({Predecessor:} 8. Qc1 Nbd7 9. Be2 Nh5 10. Be5 Nxe5 11. dxe5 g6 12. Nd4 Ng7 13. O-O Be7 14. a3 O-O 15. b4 a6 16. Ra2 Rae8 {1-0 (45) Horvath,J (2508)-Pap,G (2541) Aschach 2014}) 8... Qxb2 {[%emt 0:02:12]} 9. Na4 {[%emt 0:02:54]} Qc2 {[%emt 0:00:27]} 10. Qxc2 {[%emt 0:00:33]} Bxc2 {[%emt 0:00:06]} 11. Nc3 {[%emt 0:00:23]} Nbd7 {[%emt 0:00:32]} 12. Kd2 {[%emt 0:02:40]} Bf5 {[%emt 0:01:05]} 13. Nh4 {[%emt 0:01:22]} Ne4+ {[%emt 0:01:46]} ({Black should play} 13... Be6 $17 14. Bd3 Be7) 14. Nxe4 {[%emt 0:00:34]} Bxe4 {[%emt 0:00:08]} 15. f3 {[%emt 0:00:51]} Bg6 {[%emt 0:00:04]} 16. Nxg6 {[%emt 0:00:29]} hxg6 {[%emt 0:00:05]} 17. Bd3 {[%emt 0:01:06]} O-O-O {[%emt 0:12:02]} 18. Rhc1 {[%emt 0:00:42]} Nb8 {[%emt 0:05:20]} 19. Bxb8 {[%emt 0:06:23]} Kxb8 {[%emt 0:00:06]} 20. h3 {[%emt 0:00:11]} Bd6 {[%emt 0:00:51]} 21. Rc3 {[%emt 0:00:45] [#]} c5 $1 {[%emt 0:02:33]} 22. Rb1 {[%emt 0:05:45]} c4 {[%emt 0:03:01]} 23. Be2 {[%emt 0:05:31]} Bc7 {[%emt 0:02:06]} 24. Rc2 {[%emt 0:03:12]} Ba5+ {[%emt 0:00:20]} 25. Kd1 {[%emt 0:01:58]} Rhe8 {[%emt 0:00:16] [#]} 26. e4 $1 {[%emt 0:01:05]} dxe4 {[%emt 0:00:25]} 27. Rxc4 {[%emt 0:00:59]} Bb6 {[%emt 0:00:11]} 28. fxe4 {[%emt 0:00:55]} Rxe4 {[%emt 0:00:15]} 29. Bf3 {[%emt 0:01:10]} Rexd4+ {[%emt 0:00:06]} 30. Rxd4 {[%emt 0:00:18]} Rxd4+ {[%emt 0:00:05]} 31. Kc2 {[%emt 0:00:38]} Kc7 {[%emt 0:01:34]} 32. Rd1 {[%emt 0:06:15]} Rxd1 {[%emt 0:01:05]} 33. Bxd1 {[%emt 0:03:14]} Bf2 {[%emt 0:12:27]} 34. a4 {[%emt 0:00:31]} Kd6 {[%emt 0:04:11]} 35. Kb3 {[%emt 0:00:41]} Kc5 {[%emt 0:00:20]} 36. Bf3 {[%emt 0:00:20]} b6 {[%emt 0:00:23]} 37. Bb7 {[%emt 0:01:23]} Be1 {[%emt 0:00:10]} 38. Bf3 {[%emt 0:00:32]} g5 {[%emt 0:02:17]} 39. Be4 {[%emt 0:01:36]} Kd4 {[%emt 0:00:15]} 40. Bf3 {[%emt 0:00:35]} Bd2 {[%emt 0:02:52]} 41. Bc6 {[%emt 0:32:00]} Ke5 {[%emt 0:31:55]} 42. Bf3 {[%emt 0:03:21]} Kf4 {[%emt 0:04:33]} 43. Kc4 {[%emt 0:00:47]} Ke3 {[%emt 0:00:46]} 44. Bd5 {[%emt 0:02:41]} f6 {[%emt 0:00:17]} 45. Bc6 {[%emt 0:00:39]} Be1 {[%emt 0:00:06]} 46. Bd5 {[%emt 0:00:33]} Kd2 {[%emt 0:00:39]} 47. Kb3 {[%emt 0:00:17]} Bg3 {[%emt 0:00:35]} 48. Bc6 {[%emt 0:00:19]} Bd6 {[%emt 0:00:15]} 49. Bd5 {[%emt 0:00:19]} Kd3 {[%emt 0:00:17]} 50. Bc6 {[%emt 0:00:18]} Be7 {[%emt 0:00:33]} 51. Bd5 {[%emt 0:00:08]} Bc5 {[%emt 0:00:14]} 52. Bc6 {[%emt 0:00:06]} Bg1 {[%emt 0:01:22]} 53. Bd5 {[%emt 0:01:02]} Ke3 {[%emt 0:00:21]} 54. Bf3 {[%emt 0:00:44]} Kf4 {[%emt 0:00:15]} 55. Kc4 {[%emt 0:00:18]} Bf2 {[%emt 0:00:16]} 56. Kb5 {[%emt 0:01:16]} Ke5 {[%emt 0:00:57]} 57. a5 {[%emt 0:00:42]} bxa5 {[%emt 0:03:39]} 58. Kxa5 {[%emt 0:04:10]} Kd4 {[%emt 0:00:09]} 59. Kb5 {[%emt 0:01:19]} Kc3 {[%emt 0:00:16]} 60. Ka4 {[%emt 0:01:45]} Be1 {[%emt 0:00:32]} 61. Bg4 {[%emt 0:05:06]} Kc4 {[%emt 0:00:20]} 62. Be2+ {[%emt 0:00:27]} Kc5 {[%emt 0:00:16]} 63. Bg4 {[%emt 0:00:41]} Bd2 {[%emt 0:00:18]} 64. Bf3 {[%emt 0:02:08]} Kd6 {[%emt 0:00:48]} 65. Kb5 {[%emt 0:00:36]} Ke5 {[%emt 0:00:10]} 66. Ka4 {[%emt 0:00:20]} Kf4 {[%emt 0:00:05]} 67. Kb5 {[%emt 0:00:22]} Be3 {[%emt 0:00:07]} 68. Ka4 {[%emt 0:00:42]} Kg3 {[%emt 0:00:17]} 69. Kb5 {[%emt 0:00:28]} Bd4 {[%emt 0:01:09]} 70. Ka6 {[%emt 0:00:38]} Kf2 {[%emt 0:00:10]} 71. Kb5 {[%emt 0:00:38]} Ke3 {[%emt 0:00:12]} 72. Ka6 {[%emt 0:00:46]} Bc5 {[%emt 0:00:11]} 73. Kb5 {[%emt 0:00:30]} Kd4 {[%emt 0:00:07]} 74. Bg4 {[%emt 0:03:10]} Bb6 {[%emt 0:00:12]} 75. Bf3 {[%emt 0:00:28]} Ke5 {[%emt 0:00:22]} 76. Bg4 {[%emt 0:00:37]} Kd5 {[%emt 0:00:17]} 77. Bf3+ {[%emt 0:00:20]} Ke5 {[%emt 0:00:08]} 78. Bg4 {[%emt 0:00:10]} Kf4 $17 {[%emt 0:00:08]} 79. Bf3 {[%emt 0:00:12]} Kg3 {[%emt 0:00:07]} 80. Ka6 {[%emt 0:00:53]} Kf2 {[%emt 0:00:11]} 81. Kb5 {[%emt 0:00:23]} Ke1 {[%emt 0:01:36]} 82. Bg4 {[%emt 0:00:57]} Kd2 {[%emt 0:01:15]} 83. Ka4 {[%emt 0:00:34]} Kc3 {[%emt 0:00:35]} 84. Bf3 {[%emt 0:01:04]} Bc7 {[%emt 0:00:24]} 85. Bg4 {[%emt 0:00:23]} Bd6 {[%emt 0:00:32]} 86. Bf3 {[%emt 0:03:00]} Bb4 {[%emt 0:00:45]} 87. Bg4 {[%emt 0:00:36]} a6 {[%emt 0:00:15]} 88. Bf3 {[%emt 0:01:13]} a5 {[%emt 0:00:07]} 89. Bg4 {[%emt 0:00:48]} Kb2 {[%emt 0:00:09]} 90. Bf5 {[%emt 0:00:53]} Kc1 {[%emt 0:00:05]} 91. Kb3 {[%emt 0:00:52]} Kd2 {[%emt 0:00:06]} 92. Bg4 {[%emt 0:00:44]} Ke3 {[%emt 0:00:06]} 93. Bf3 {[%emt 0:00:32]} Kf4 {[%emt 0:00:07]} 94. Ka4 {[%emt 0:00:17]} Be1 {[%emt 0:00:07]} 95. Kb3 {[%emt 0:00:19]} Kg3 {[%emt 0:01:27]} 96. Ka4 {[%emt 0:00:34]} f5 {[%emt 0:00:43]} 97. Kb3 {[%emt 0:00:10]} Kf4 {[%emt 0:00:17]} 98. Ka4 {[%emt 0:01:00]} Bb4 {[%emt 0:00:30]} 99. Kb3 {[%emt 0:00:25]} Ke5 {[%emt 0:00:06]} 100. Bb7 {[%emt 0:00:35]} Kd4 {[%emt 0:00:25]} 101. Bc6 {[%emt 0:00:59]} Kc5 {[%emt 0:00:09]} 102. Bd7 {[%emt 0:01:13]} g6 {[%emt 0:00:14]} 103. Be8 {[%emt 0:01:13]} f4 {[%emt 0:00:14]} 1/2-1/2

[Event "SWE-ch -50 2018"]
[Site "Ronneby"]
[Date "2018.07.07"]
[Round "8"]
[White "Cramling, Dan"]
[Black "Andersson, Kjell-Ake"]
[Result "1-0"]
[ECO "E42"]
[WhiteElo "2355"]
[BlackElo "1912"]
[Annotator "NA"]
[PlyCount "87"]
[EventDate "2018.06.30"]
[EventType "tourn"]
[EventCountry "SWE"]
[SourceTitle "playchess.com"]
[Source "ChessBase"]
[SourceQuality "1"]
[TimeControl "40/5400+30:1800+30"]

1. d4 {[%emt 0:00:43]} Nf6 {[%emt 0:00:07]} 2. c4 {[%emt 0:00:15]} e6 {[%emt 0:00:41]} 3. Nc3 {[%emt 0:00:17]} Bb4 {[%emt 0:00:32]} 4. e3 {[%emt 0:00:32]} c5 {[%emt 0:00:32]} 5. Nge2 {[%emt 0:00:30]} cxd4 {[%emt 0:00:25]} 6. exd4 {[%emt 0:00:09]} d5 {[%emt 0:00:11]} 7. a3 {[%emt 0:00:13]} Be7 {[%emt 0:00:58]} 8. Nf4 {[%emt 0:00:15]} dxc4 {[%emt 0:01:36]} 9. Bxc4 {[%emt 0:01:25]} O-O {[%emt 0:01:02]} 10. O-O {[%emt 0:00:35]} Nbd7 {[%emt 0:01:23]} 11. Re1 {[%emt 0:06:01]} Nb6 {[%emt 0:02:50]} 12. Bb3 {[%emt 0:08:49]} Re8 {[%emt 0:08:31]} 13. Qd3 {[%emt 0:08:43]} Nbd7 {[%emt 0:03:04]} 14. Be3 {[%emt 0:32:48]} Bf8 {[%emt 0:08:55]} 15. Rad1 {[%emt 0:04:19]} b6 {[%emt 0:09:05]} 16. d5 {[%emt 0:04:07]} e5 {[%emt 0:03:40]} 17. Ne6 {[%emt 0:00:52]} fxe6 {[%emt 0:03:56]} 18. dxe6 $18 {[%emt 0:00:40]} Kh8 {[%emt 0:01:38]} 19. Bg5 {[%emt 0:04:31]} Qc7 {[%emt 0:08:26]} 20. exd7 {[%emt 0:00:31]} Qxd7 {[%emt 0:07:22]} 21. Qc4 {[%emt 0:01:00]} Qg4 {[%emt 0:01:44]} 22. Bxf6 {[%emt 0:04:31]} gxf6 {[%emt 0:01:28]} 23. Qc6 {[%emt 0:02:21]} Be6 {[%emt 0:02:55]} 24. Re4 {[%emt 0:10:46]} Qg8 {[%emt 0:01:57]} 25. Bxe6 Qxe6 {[%emt 0:03:31]} 26. Qb7 {[%emt 0:02:43]} Qc8 {[%emt 0:02:25]} 27. Qf7 {[%emt 0:00:35]} Qe6 {[%emt 0:01:03]} 28. Rd7 {[%emt 0:00:50]} Re7 {[%emt 0:02:53]} 29. Qxe6 {[%emt 0:01:09]} Rxe6 {[%emt 0:00:09]} 30. Rc4 {[%emt 0:00:27]} Re7 {[%emt 0:04:19]} 31. Rxe7 {[%emt 0:01:27]} Bxe7 {[%emt 0:00:09]} 32. Rc7 {[%emt 0:00:09]} Bd8 {[%emt 0:01:13]} 33. Rd7 {[%emt 0:00:15]} a6 {[%emt 0:00:36]} 34. g4 {[%emt 0:00:33]} b5 {[%emt 0:00:49]} 35. Kg2 {[%emt 0:00:24]} Kg8 {[%emt 0:02:21]} 36. Kf3 {[%emt 0:00:49]} Bb6 {[%emt 0:00:49]} 37. Nd5 {[%emt 0:00:11]} Bd8 {[%emt 0:00:51]} 38. Ke4 {[%emt 0:00:16]} Rb8 {[%emt 0:01:43]} 39. Kf5 {[%emt 0:00:41]} Rc8 {[%emt 0:00:40]} 40. h4 {[%emt 0:00:43]} Rb8 {[%emt 0:01:39]} 41. h5 {[%emt 0:31:10]} Rc8 {[%emt 0:30:41]} 42. h6 {[%emt 0:00:49]} Rb8 {[%emt 0:00:28]} 43. Rg7+ {[%emt 0:01:32]} Kh8 {[%emt 0:00:11]} 44. Ke6 {[%emt 0:00:24]} 1-0

[Event "SWE-ch -50 2018"]
[Site "Ronneby"]
[Date "2018.07.07"]
[Round "8"]
[White "Rothen, Hakan"]
[Black "Wedin, Svante"]
[Result "1-0"]
[ECO "D70"]
[WhiteElo "2291"]
[BlackElo "1992"]
[Annotator "NA"]
[PlyCount "99"]
[EventDate "2018.06.30"]
[EventType "tourn"]
[EventCountry "SWE"]
[SourceTitle "playchess.com"]
[Source "ChessBase"]
[SourceQuality "1"]
[TimeControl "40/5400+30:1800+30"]

1. d4 {[%emt 0:00:00] Winslow,Elliott C} d5 {[%emt 0:02:45]} 2. c4 {[%emt 0:00:19]} c6 {[%emt 0:00:17]} 3. Nf3 {[%emt 0:00:28]} Nf6 {[%emt 0:00:04]} 4. Nbd2 {[%emt 0:01:55]} g6 {[%emt 0:05:47] D11: Slav Defence: 3 Nf3 sidelines and 3...Nf6 4 e3 Bg4} (4... Bf5 5. Nh4 Be6 6. e3 g6 7. b3 Bg7 8. Bb2 O-O 9. Be2 Ne4 10. O-O c5 11. Nxe4 dxe4 12. Qc2 f5 {0-1 (54) Svane,R (2595)-Van Foreest,J (2609) Germany 2017}) 5. b3 {[%emt 0:01:12]} Bg7 {[%emt 0:00:02]} 6. Bb2 {[%emt 0:00:09]} O-O {[%emt 0:00:13]} 7. e3 {[%emt 0:00:04]} Nbd7 {[%emt 0:01:19]} 8. Be2 {[%emt 0:00:30]} Qa5 {[%emt 0:08:41]} 9. O-O {[%emt 0:00:39]} Ne4 {[%emt 0:01:01]} 10. Nxe4 {[%emt 0:03:01]} dxe4 {[%emt 0:00:03]} 11. Nd2 {[%emt 0:00:50]} f5 {[%emt 0:00:28]} 12. c5 $146 {[%emt 0:00:47]} ({Predecessor:} 12. a3 c5 13. b4 Qc7 14. Nb3 b6 15. Qc2 e5 16. d5 {½-½ (40) Khristoforov,S (1977)-Traub,I (2073) San Francisco 2015 EXT 2016 [Winslow,Elliott C]}) 12... Qc7 {[%emt 0:03:34]} 13. b4 {[%emt 0:04:06]} Nf6 {[%emt 0:06:54]} 14. Bc4+ {[%emt 0:03:52]} Kh8 {[%emt 0:00:10]} 15. f4 {[%emt 0:01:37]} (15. Qb3 $14) 15... exf3 {[%emt 0:03:47]} 16. Nxf3 {[%emt 0:02:03]} Nd5 {[%emt 0:02:44]} 17. Bxd5 {[%emt 0:02:56]} cxd5 {[%emt 0:00:03]} 18. Qb3 {[%emt 0:00:14]} e6 {[%emt 0:01:16]} 19. b5 {[%emt 0:00:48]} Bd7 {[%emt 0:04:17]} 20. a4 {[%emt 0:00:18]} Qd8 {[%emt 0:02:40]} 21. Rac1 {[%emt 0:05:45]} Qe8 {[%emt 0:02:41]} 22. Rc2 {[%emt 0:00:26]} a6 {[%emt 0:00:59]} 23. Ba3 {[%emt 0:08:02]} Rg8 $2 {[%emt 0:07:40] [#]} (23... axb5 $11 24. c6 Bxc6 25. Bxf8 Bxf8 26. axb5 Bxb5) 24. c6 $18 {[%emt 0:05:27]} bxc6 {[%emt 0:00:13]} 25. bxa6 {[%emt 0:00:29]} Rxa6 {[%emt 0:01:31]} 26. Bc5 {[%emt 0:02:21]} Qa8 {[%emt 0:06:29]} 27. Ra2 {[%emt 0:03:10]} Rb8 {[%emt 0:00:16]} 28. Qc2 {[%emt 0:00:12]} Bc8 {[%emt 0:08:12]} 29. Rfa1 {[%emt 0:07:00]} Ra5 {[%emt 0:03:37]} 30. Bd6 {[%emt 0:00:25]} Rb7 {[%emt 0:03:00]} 31. Ne1 {[%emt 0:02:40]} c5 {[%emt 0:14:46]} 32. Bxc5 {[%emt 0:01:15]} Rc7 {[%emt 0:00:15]} 33. Rb1 {[%emt 0:08:57]} Bf8 {[%emt 0:01:12]} 34. Nd3 {[%emt 0:14:06]} Ba6 {[%emt 0:00:59]} 35. Rab2 {[%emt 0:00:19]} Rc8 {[%emt 0:00:21]} 36. Rb6 {[%emt 0:05:08]} Bxd3 {[%emt 0:02:07]} 37. Qxd3 {[%emt 0:00:07]} Bxc5 {[%emt 0:00:22]} 38. dxc5 {[%emt 0:00:07]} Raxc5 {[%emt 0:02:33]} 39. Qd4+ {[%emt 0:00:30]} Kg8 {[%emt 0:00:02]} 40. Qe5 {[%emt 0:00:40]} R5c6 {[%emt 0:04:10]} 41. Rb7 {[%emt 0:33:37]} Rc1+ {[%emt 0:03:48]} 42. Kf2 {[%emt 0:00:00]} R8c2+ {[%emt 0:00:24]} 43. Kf3 {[%emt 0:00:00]} Rf1+ {[%emt 0:07:39]} 44. Kg3 {[%emt 0:00:00]} f4+ {[%emt 0:00:20]} 45. exf4 {[%emt 0:00:00]} Qf8 {[%emt 0:00:28]} 46. Qxe6+ {[%emt 0:00:00]} Kh8 {[%emt 0:00:09]} 47. Qe5+ {[%emt 0:00:00]} Kg8 {[%emt 0:00:14]} 48. Qxd5+ {[%emt 0:00:00]} Kh8 {[%emt 0:00:09]} 49. Qe5+ {[%emt 0:00:00]} Kg8 {[%emt 0:00:10]} 50. Rxf1 1-0

[Event "SWE-ch -50 2018"]
[Site "Ronneby"]
[Date "2018.07.07"]
[Round "8"]
[White "Nilsson, Patrik"]
[Black "Gamback, Bjorn"]
[Result "1/2-1/2"]
[ECO "B42"]
[WhiteElo "2229"]
[BlackElo "2108"]
[Annotator "NA"]
[PlyCount "27"]
[EventDate "2018.06.30"]
[EventType "tourn"]
[EventCountry "SWE"]
[SourceTitle "playchess.com"]
[Source "ChessBase"]
[SourceQuality "1"]
[TimeControl "40/5400+30:1800+30"]

1. e4 {[%emt 0:01:34]} c5 {[%emt 0:00:28]} 2. Nf3 {[%emt 0:00:09]} e6 {[%emt 0:00:11]} 3. d4 {[%emt 0:00:14]} cxd4 {[%emt 0:00:09]} 4. Nxd4 {[%emt 0:00:06]} a6 {[%emt 0:00:08]} 5. Bd3 {[%emt 0:00:24]} Bc5 {[%emt 0:00:16]} 6. Nb3 {[%emt 0:00:17]} Be7 {[%emt 0:00:09]} 7. O-O {[%emt 0:00:35]} Qc7 {[%emt 0:00:47]} 8. Qe2 {[%emt 0:01:25]} d6 {[%emt 0:00:21]} 9. c4 {[%emt 0:02:30]} Nd7 {[%emt 0:01:19]} 10. Nc3 {[%emt 0:00:46]} b6 {[%emt 0:00:32]} 11. f4 {[%emt 0:02:44]} Bb7 {[%emt 0:02:03]} 12. Bd2 {[%emt 0:00:45]} Ngf6 {[%emt 0:02:43]} 13. Rae1 {[%emt 0:05:32]} e5 {[%emt 0:01:10]} 14. Qd1 1/2-1/2

[Event "SWE-ch -50 2018"]
[Site "Ronneby"]
[Date "2018.07.07"]
[Round "8"]
[White "Moborn, Anders"]
[Black "Gemzell, Ted"]
[Result "1/2-1/2"]
[ECO "A48"]
[WhiteElo "2045"]
[BlackElo "1990"]
[Annotator "NA"]
[PlyCount "57"]
[EventDate "2018.06.30"]
[EventType "tourn"]
[EventCountry "SWE"]
[SourceTitle "playchess.com"]
[Source "ChessBase"]
[SourceQuality "1"]
[TimeControl "40/5400+30:1800+30"]

1. d4 {[%emt 0:00:00]} Nf6 {[%emt 0:00:04]} 2. Nf3 {[%emt 0:00:45]} g6 {[%emt 0:00:38]} 3. c4 {[%emt 0:00:07]} c5 {[%emt 0:00:13]} 4. d5 {[%emt 0:00:20]} b5 {[%emt 0:00:13]} 5. cxb5 {[%emt 0:01:06]} a6 {[%emt 0:00:06]} 6. bxa6 {[%emt 0:01:56]} Bxa6 {[%emt 0:01:05]} 7. Nc3 {[%emt 0:00:13]} d6 {[%emt 0:00:23]} 8. e4 {[%emt 0:00:16]} Bxf1 {[%emt 0:00:12]} 9. Kxf1 {[%emt 0:00:07]} Nbd7 {[%emt 0:00:18]} 10. g3 {[%emt 0:00:44]} Bg7 {[%emt 0:00:14]} 11. Kg2 {[%emt 0:01:04]} O-O {[%emt 0:00:08]} 12. h3 {[%emt 0:00:11]} Qa5 {[%emt 0:03:29]} 13. Re1 {[%emt 0:01:01]} Rfb8 {[%emt 0:07:51]} 14. Re2 {[%emt 0:00:19]} Ra7 {[%emt 0:03:35]} 15. Rc2 {[%emt 0:04:45]} Rab7 {[%emt 0:02:43]} 16. Qe2 {[%emt 0:00:25]} Nb6 {[%emt 0:08:02]} 17. Nd2 {[%emt 0:08:04]} Nfd7 {[%emt 0:01:27]} 18. f4 {[%emt 0:01:14]} Na4 {[%emt 0:07:10]} 19. Nxa4 {[%emt 0:02:28]} Qxa4 {[%emt 0:02:54]} 20. Nc4 {[%emt 0:03:19]} Nb6 {[%emt 0:04:21]} 21. b3 {[%emt 0:03:20]} Qa6 {[%emt 0:07:36]} 22. Rb1 {[%emt 0:00:36]} Nxc4 {[%emt 0:01:14]} 23. Qxc4 {[%emt 0:02:31]} Qa8 {[%emt 0:06:54]} 24. Bd2 {[%emt 0:03:29]} Ra7 {[%emt 0:00:39]} 25. a4 {[%emt 0:00:24]} Rxa4 {[%emt 0:01:53]} 26. Qxa4 Qxa4 {[%emt 0:00:06]} 27. bxa4 {[%emt 0:00:51]} Rxb1 {[%emt 0:00:03]} 28. Ra2 {[%emt 0:00:14]} c4 {[%emt 0:07:11]} 29. Rc2 {[%emt 0:02:46]} 1/2-1/2

[Event "SWE-ch -50 2018"]
[Site "Ronneby"]
[Date "2018.07.08"]
[Round "9"]
[White "Moborn, Anders"]
[Black "Rothen, Hakan"]
[Result "0-1"]
[ECO "E11"]
[WhiteElo "2045"]
[BlackElo "2291"]
[Annotator "NA"]
[PlyCount "86"]
[EventDate "2018.06.30"]
[EventType "tourn"]
[EventCountry "SWE"]
[SourceTitle "playchess.com"]
[Source "ChessBase"]
[SourceQuality "1"]
[TimeControl "40/5400+30:1800+30"]

1. d4 {[%emt 0:00:00]} Nf6 {[%emt 0:00:00]} 2. c4 {[%emt 0:00:00]} e6 {[%emt 0:00:00]} 3. Nf3 {[%emt 0:00:25]} Bb4+ {[%emt 0:00:16]} 4. Bd2 {[%emt 0:00:10]} Bxd2+ {[%emt 0:00:13]} 5. Nbxd2 {[%emt 0:00:58] LiveBook: 95 Games} d6 {[%emt 0:01:13]} 6. e3 {[%emt 0:05:39]} b6 {[%emt 0:01:05]} 7. Bd3 {[%emt 0:01:07]} Bb7 {[%emt 0:00:23]} 8. Nf1 $146 {[%emt 0:01:15] E14: Queen's Indian: Classical Variation (4 e3)} c5 {[%emt 0:01:43]} 9. dxc5 {[%emt 0:02:12]} dxc5 {[%emt 0:01:06]} 10. Ng3 {[%emt 0:00:13]} Nc6 {[%emt 0:02:20]} 11. Rc1 {[%emt 0:00:25]} Qc7 {[%emt 0:01:29]} 12. Bb1 {[%emt 0:02:35]} Ne5 {[%emt 0:10:38]} 13. e4 {[%emt 0:04:33] [#]} Rd8 {[%emt 0:00:46]} (13... h5 $142 $1 14. Nxe5 Qxe5) 14. Qe2 {[%emt 0:00:18]} Ng6 {[%emt 0:10:15]} 15. O-O {[%emt 0:06:33]} O-O {[%emt 0:00:55]} 16. Rcd1 {[%emt 0:01:28]} Nf4 {[%emt 0:02:10]} 17. Qe3 {[%emt 0:00:58]} Ng4 {[%emt 0:02:24]} 18. Qc3 {[%emt 0:07:18]} f6 {[%emt 0:04:06]} 19. h3 {[%emt 0:06:10]} Ne5 {[%emt 0:00:32]} 20. Nxe5 {[%emt 0:00:37]} fxe5 {[%emt 0:00:32]} 21. Qe3 {[%emt 0:00:51]} Qe7 {[%emt 0:05:53]} 22. Ne2 {[%emt 0:02:27]} Qg5 {[%emt 0:00:54]} 23. Nxf4 {[%emt 0:00:56]} exf4 {[%emt 0:00:24]} 24. Qf3 {[%emt 0:00:22]} Qe5 {[%emt 0:02:18]} 25. b3 {[%emt 0:01:18]} Rd4 {[%emt 0:00:52]} 26. Rxd4 {[%emt 0:00:51]} cxd4 {[%emt 0:01:21]} 27. Bd3 {[%emt 0:00:27]} a5 {[%emt 0:02:10]} 28. Rb1 {[%emt 0:04:52]} Qc5 {[%emt 0:08:36]} 29. a4 {[%emt 0:14:10]} e5 {[%emt 0:00:55]} 30. Kf1 {[%emt 0:10:05]} Bc8 {[%emt 0:02:57]} 31. Be2 {[%emt 0:01:28]} Bd7 {[%emt 0:05:15]} 32. Qd3 {[%emt 0:01:41]} Rf6 {[%emt 0:02:55]} 33. Bd1 {[%emt 0:04:50]} Rc6 {[%emt 0:03:50]} 34. b4 {[%emt 0:05:15]} axb4 {[%emt 0:00:47]} 35. Qb3 {[%emt 0:00:06]} Be6 {[%emt 0:01:12]} 36. Qxb4 {[%emt 0:00:29]} Bxc4+ {[%emt 0:00:57]} 37. Ke1 {[%emt 0:02:56]} Kf8 {[%emt 0:05:51]} 38. Qxc5+ {[%emt 0:05:05]} bxc5 {[%emt 0:01:51]} 39. Rb7 {[%emt 0:00:12]} Ba6 $19 {[%emt 0:01:33]} 40. Rb8+ {[%emt 0:00:49]} Ke7 {[%emt 0:00:46]} 41. a5 {[%emt 0:30:14]} c4 {[%emt 0:30:53]} 42. Ba4 {[%emt 0:01:00]} Rc5 {[%emt 0:00:22]} 43. Re8+ {[%emt 0:00:26]} Kf7 {[%emt 0:00:13]} 0-1

[Event "SWE-ch -50 2018"]
[Site "Ronneby"]
[Date "2018.07.08"]
[Round "9"]
[White "Franzen, Per-Erik"]
[Black "Nilsson, Patrik"]
[Result "0-1"]
[ECO "A04"]
[WhiteElo "1995"]
[BlackElo "2229"]
[Annotator "NA"]
[PlyCount "32"]
[EventDate "2018.06.30"]
[EventType "tourn"]
[EventCountry "SWE"]
[SourceTitle "playchess.com"]
[Source "ChessBase"]
[SourceQuality "1"]
[TimeControl "40/5400+30:1800+30"]

1. Nf3 {[%emt 0:00:17]} d6 {[%emt 0:00:12]} 2. g3 {[%emt 0:02:58]} g6 {[%emt 0:00:13]} 3. Bg2 {[%emt 0:01:08]} Bg7 {[%emt 0:00:12]} 4. O-O {[%emt 0:00:18]} Nf6 {[%emt 0:00:22]} 5. b3 {[%emt 0:03:38] A05: Réti Opening: 1 Nf3 Nf6} O-O {[%emt 0:00:28]} 6. Bb2 {[%emt 0:00:14]} Nc6 {[%emt 0:02:36]} (6... e5 7. c4 Re8 8. Nc3 e4 9. Nd4 c6 10. e3 Na6 11. d3 exd3 12. Qxd3 Nc5 13. Qc2 a5 14. a3 h5 15. h3 Bd7 16. b4 {1-0 (31) Karjakin,S (2782)-Mamedyarov,S (2808) Stavanger 2018}) 7. c4 {[%emt 0:05:01] LiveBook: 7 Games} Bf5 {[%emt 0:09:48]} 8. Nh4 $146 {[%emt 0:05:41]} ({Predecessor:} 8. d3 Qd7 9. Nbd2 e5 10. Ng5 {0-1 (10) Zaitseva,V (1457)-Senis,E (1232) LSS email 2013}) 8... Bd7 {[%emt 0:02:28]} 9. f4 {[%emt 0:03:40]} e5 {[%emt 0:10:07]} 10. fxe5 {[%emt 0:03:31]} Ng4 {[%emt 0:10:32]} 11. h3 {[%emt 0:06:26]} Nh6 {[%emt 0:00:30]} 12. d4 {[%emt 0:04:42]} dxe5 {[%emt 0:01:47]} 13. dxe5 {[%emt 0:07:53]} Qc8 {[%emt 0:08:02]} 14. Nd2 $2 {[%emt 0:28:46]} (14. g4 $15) 14... Bxh3 {[%emt 0:02:25]} 15. Bxc6 {[%emt 0:04:54]} bxc6 {[%emt 0:03:23]} 16. Rf4 {[%emt 0:03:14]} g5 $19 {[%emt 0:02:35]} 0-1

[Event "SWE-ch -50 2018"]
[Site "Ronneby"]
[Date "2018.07.08"]
[Round "9"]
[White "Wedin, Svante"]
[Black "Cramling, Dan"]
[Result "0-1"]
[ECO "B06"]
[WhiteElo "1992"]
[BlackElo "2355"]
[Annotator "NA"]
[PlyCount "30"]
[EventDate "2018.06.30"]
[EventType "tourn"]
[EventCountry "SWE"]
[SourceTitle "playchess.com"]
[Source "ChessBase"]
[SourceQuality "1"]
[TimeControl "40/5400+30:1800+30"]

1. e4 {[%emt 0:00:00]} g6 {[%emt 0:00:14]} 2. d4 {[%emt 0:00:00]} Bg7 {[%emt 0:00:09]} 3. f4 {[%emt 0:00:00]} c5 {[%emt 0:01:21]} 4. Nf3 {[%emt 0:01:01]} cxd4 {[%emt 0:06:04]} 5. Nxd4 {[%emt 0:00:03]} Nc6 {[%emt 0:03:13]} 6. Nb3 {[%emt 0:05:29]} d6 {[%emt 0:03:44]} 7. Nc3 {[%emt 0:03:26] LiveBook: 28 Games} Nf6 {[%emt 0:07:47]} 8. Be2 {[%emt 0:00:21]} Qb6 {[%emt 0:02:36]} 9. Bf3 {[%emt 0:04:49]} a5 {[%emt 0:05:05]} 10. a4 {[%emt 0:04:30]} Nb4 $15 {[%emt 0:04:19]} 11. Qe2 {[%emt 0:05:58]} Be6 {[%emt 0:02:36]} 12. Nb5 {[%emt 0:05:55]} Rc8 {[%emt 0:01:32]} 13. N3d4 {[%emt 0:01:06]} Bc4 {[%emt 0:01:36]} 14. Qd2 {[%emt 0:02:42]} Bxb5 {[%emt 0:01:13]} 15. axb5 {[%emt 0:01:06]} Qxd4 0-1